{"text_format":"1","workbook":"xlsx","n_sheets":1,"sheets":["Sheet1"],"not_rendered":{"charts":0,"images":0,"macros":0,"external_links":0,"defined_names":2,"comments":0,"pivot_tables":0},"unopened":[],"bounds":{"document_bytes":16777216,"sheet_cells":100000,"rows_first":2000,"rows_last":500,"rows_between":2000,"halvings":0,"cell_chars":16384,"cell_head_chars":4096},"cells_cut":0,"cells_raw":0,"read":"whole","date_system":"1900"}

{"sheet":"Sheet1","index":0,"n_rows":42,"n_cols":4,"rows_kept":42,"cut":false,"hidden":false,"merged":[]}
[{"$f":"REPLACE(CELL(\"filename\"),FIND(\"[\",CELL(\"filename\")),LEN(CELL(\"filename\")),\"*\")","v":"C:\\Users\\m\\Documents\\*"},{"$f":"INDEX(FileNameList,ROWS($A$1:A1))","v":"AKZO-Standaars-Steunpuntsafstanden.xlsx"}]
[null,{"$f":"INDEX(FileNameList,ROWS($A$1:A2))","v":"Backup-opslag-plaatsen.xlsx"},null,"ZET DEZE FILE IN DEZELFDE FOLDER VAN WELKE JE EEN LIJST IN EXCEL WIL HEBBEN."]
[null,{"$f":"INDEX(FileNameList,ROWS($A$1:A3))","v":"block2_asg.xcf"}]
[null,{"$f":"INDEX(FileNameList,ROWS($A$1:A4))","v":"block2_dif.xcf"}]
[null,{"$f":"INDEX(FileNameList,ROWS($A$1:A5))","v":"Book1.xlsm"}]
[null,{"$f":"INDEX(FileNameList,ROWS($A$1:A6))","v":"Book1.xlsx"}]
[null,{"$f":"INDEX(FileNameList,ROWS($A$1:A7))","v":"Book10.xlsm"}]
[null,{"$f":"INDEX(FileNameList,ROWS($A$1:A8))","v":"cc_20160713_111159.reg"}]
[null,{"$f":"INDEX(FileNameList,ROWS($A$1:A9))","v":"cc_20160723_213511.reg"}]
[null,{"$f":"INDEX(FileNameList,ROWS($A$1:A10))","v":"cc_20160727_013807.reg"}]
[null,{"$f":"INDEX(FileNameList,ROWS($A$1:A11))","v":"cc_20160801_110453.reg"}]
[null,{"$f":"INDEX(FileNameList,ROWS($A$1:A12))","v":"cc_20160809_121958.reg"}]
[null,{"$f":"INDEX(FileNameList,ROWS($A$1:A13))","v":"cc_20160924_120739.reg"}]
[null,{"$f":"INDEX(FileNameList,ROWS($A$1:A14))","v":"cc_20161102_113013.reg"}]
[null,{"$f":"INDEX(FileNameList,ROWS($A$1:A15))","v":"cc_20161118_220347.reg"}]
[null,{"$f":"INDEX(FileNameList,ROWS($A$1:A16))","v":"cc_20170114_113341.reg"}]
[null,{"$f":"INDEX(FileNameList,ROWS($A$1:A17))","v":"cc_20170128_103533.reg"}]
[null,{"$f":"INDEX(FileNameList,ROWS($A$1:A18))","v":"cc_20170204_130736.reg"}]
[null,{"$f":"INDEX(FileNameList,ROWS($A$1:A19))","v":"cc_20170222_200348.reg"}]
[null,{"$f":"INDEX(FileNameList,ROWS($A$1:A20))","v":"cc_20170312_102328.reg"}]
[null,{"$f":"INDEX(FileNameList,ROWS($A$1:A21))","v":"cc_20170330_191746.reg"}]
[null,{"$f":"INDEX(FileNameList,ROWS($A$1:A22))","v":"cc_20170409_184545.reg"}]
[null,{"$f":"INDEX(FileNameList,ROWS($A$1:A23))","v":"cc_20170415_182845.reg"}]
[null,{"$f":"INDEX(FileNameList,ROWS($A$1:A24))","v":"cc_20170510_164842.reg"}]
[null,{"$f":"INDEX(FileNameList,ROWS($A$1:A25))","v":"cc_20170906_000536.reg"}]
[null,{"$f":"INDEX(FileNameList,ROWS($A$1:A26))","v":"cc_20170916_185606.reg"}]
[null,{"$f":"INDEX(FileNameList,ROWS($A$1:A27))","v":"cc_20171001_183019.reg"}]
[null,{"$f":"INDEX(FileNameList,ROWS($A$1:A28))","v":"cc_20171007_174353.reg"}]
[null,{"$f":"INDEX(FileNameList,ROWS($A$1:A29))","v":"cilinder-mza.blend"}]
[null,{"$f":"INDEX(FileNameList,ROWS($A$1:A30))","v":"cilinder-mza.blend.scene"}]
[null,{"$f":"INDEX(FileNameList,ROWS($A$1:A31))","v":"cilinder-mza.blend1"}]
[null,{"$f":"INDEX(FileNameList,ROWS($A$1:A32))","v":"Cube.mesh.xml"}]
[null,{"$f":"INDEX(FileNameList,ROWS($A$1:A33))","v":"DVD-2017-09-0001a.dfproj"}]
[null,{"$f":"INDEX(FileNameList,ROWS($A$1:A34))","v":"excelzoom-01.xlsx"}]
[null,{"$f":"INDEX(FileNameList,ROWS($A$1:A35))","v":"ID.txt"}]
[null,{"$f":"INDEX(FileNameList,ROWS($A$1:A36))","v":"Material.material"}]
[null,{"$f":"INDEX(FileNameList,ROWS($A$1:A37))","v":"Partially_Volume_Cilinder_1.xlsx"}]
[null,{"$f":"INDEX(FileNameList,ROWS($A$1:A38))","v":"pdlice.txt"}]
[null,{"$f":"INDEX(FileNameList,ROWS($A$1:A39))","v":"pdlice1.txt"}]
[null,{"$f":"INDEX(FileNameList,ROWS($A$1:A40))","v":"pdlice3.txt"}]
[null,{"$f":"INDEX(FileNameList,ROWS($A$1:A41))","v":"Verhuizing-Inboedel-01_Mient-Esther.xlsx"}]
[null,{"$f":"INDEX(FileNameList,ROWS($A$1:A42))","v":{"$error":"#REF!"}}]